bitfinex/quotes_BTCUSD_20251110
["timestamp","ask_amount","ask_price","bid_price","bid_amount"]
[1762765414559,0.95631396,106010.0,106000.0,0.02000109]
[1762765414781,1.28973599,106010.0,106000.0,0.02000109]
[1762765417136,1.2892651,106010.0,106000.0,0.02000109]
[1762765417743,1.28973599,106010.0,106000.0,0.02000109]
[1762765418241,1.2892651,106010.0,106000.0,0.02000109]
[1762765419848,1.28956292,106010.0,106000.0,0.02000109]
[1762765425035,1.62306093,106010.0,106000.0,0.02000109]
[1762765425680,1.62306854,106010.0,106000.0,0.02000109]
[1762765428081,1.62206854,106010.0,106000.0,0.02000109]
[1762765428485,1.52396681,106010.0,106000.0,0.02000109]
[1762765428832,1.48210899,106010.0,106000.0,0.02000109]
[1762765429139,1.52362899,106010.0,106000.0,0.02000109]
[1762765429471,1.14864897,106010.0,106000.0,0.02000109]
[1762765429679,1.19016897,106010.0,106000.0,0.02000109]
[1762765429906,1.52362899,106010.0,106000.0,0.02000109]
[1762765430115,1.19016897,106010.0,106000.0,0.02000109]
[1762765430321,0.25137607,106010.0,106000.0,0.07128109]
[1762765430597,0.54771448,106010.0,106000.0,0.25996033]
[1762765430835,0.54771448,106010.0,106000.0,0.07128109]
[1762765430836,0.87071448,106010.0,106000.0,0.07128109]
[1762765431039,0.87072267,106010.0,106000.0,0.25996033]
[1762765431242,0.87072267,106010.0,106000.0,0.07128109]
[1762765431419,0.86472267,106010.0,106000.0,0.25996033]
[1762765431617,0.86272267,106010.0,106000.0,0.07128109]
[1762765431852,0.86872267,106010.0,106000.0,0.26096033]
[1762765432056,0.87072267,106010.0,106000.0,0.26096033]
[1762765432264,0.86472267,106010.0,106000.0,0.25996033]
[1762765432459,0.86272267,106010.0,106000.0,0.25996033]
[1762765432661,0.86672267,106010.0,106000.0,0.26096033]
[1762765432884,0.86772267,106010.0,106000.0,0.26096033]
[1762765433802,0.67906123,106010.0,106000.0,0.26096033]
[1762765433949,0.34560121,106010.0,106000.0,0.26096033]
[1762765434554,0.67906123,106010.0,106000.0,0.26096033]
[1762765434993,0.86772267,106010.0,106000.0,0.26096033]
[1762765435245,0.86772267,106010.0,106000.0,0.07228109]
[1762765435472,0.86772267,106010.0,106000.0,0.26096033]
[1762765435860,0.86772267,106010.0,106000.0,0.07228109]
[1762765436036,0.86772267,106010.0,106000.0,0.26096033]
[1762765437121,0.53426265,106010.0,106000.0,0.26096033]
[1762765437330,0.86772267,106010.0,106000.0,0.26096033]
[1762765437452,0.34560121,106010.0,106000.0,0.26096033]
[1762765437653,0.86772267,106010.0,106000.0,0.26096033]
[1762765438084,0.67906123,106010.0,106000.0,0.26096033]
[1762765438757,0.86772267,106010.0,106000.0,0.26096033]
[1762765438970,0.67906123,106010.0,106000.0,0.26096033]
[1762765439387,0.9658244,106010.0,106000.0,0.07228109]
[1762765439593,0.44370294,106010.0,106000.0,0.07228109]
[1762765439766,0.53426265,106010.0,106000.0,0.26096033]
[1762765439998,0.86772267,106010.0,106000.0,0.26096033]
[1762765440220,0.34560121,106010.0,106000.0,0.26096033]
[1762765440447,0.86772267,106010.0,106000.0,0.07228109]
[1762765440658,0.53426265,106010.0,106000.0,0.07228109]
[1762765440870,0.86772267,106010.0,106000.0,0.26096033]
[1762765441078,0.53426265,106010.0,106000.0,0.07228109]
[1762765441282,0.86772267,106010.0,106000.0,0.07228109]
[1762765441661,0.53426265,106010.0,106000.0,0.03323109]
[1762765441978,0.53426265,106010.0,106000.0,0.07325109]
[1762765442239,0.86772267,106010.0,106000.0,0.07325109]
[1762765443000,0.86772267,106010.0,106000.0,0.03323109]
[1762765443219,0.86772267,106010.0,106000.0,0.02100109]
[1762765443485,0.9658244,106010.0,106000.0,0.02100109]
[1762765443903,1.56038488,106010.0,106000.0,0.02100109]
[1762765444106,1.5295667,106010.0,106000.0,0.02100109]
[1762765445374,1.5295667,106010.0,106000.0,0.07331109]
[1762765445375,0.57578265,106010.0,106000.0,0.07331109]
[1762765445582,0.90924267,106010.0,106000.0,0.07331109]
[1762765445962,0.93757193,106010.0,106000.0,0.26199033]
[1762765447448,0.37393047,106010.0,106000.0,0.26199033]
[1762765447655,0.02260121,106010.0,106000.0,0.26199033]
[1762765447856,0.005,106010.0,106000.0,0.26199033]
[1762765449482,0.005,106010.0,106000.0,0.59545035]
[1762765450590,0.005,106010.0,106000.0,0.26199033]
[1762765450926,0.19366144,106010.0,106000.0,0.26199033]
[1762765451342,0.005,106010.0,106000.0,0.26199033]
[1762765451963,0.52712146,106010.0,106000.0,0.07331109]
[1762765452563,1.3217856,106010.0,106000.0,0.04858109]
[1762765452979,1.3217856,106010.0,106000.0,0.03329109]
[1762765452980,1.33934392,106010.0,106000.0,0.03329109]
[1762765453176,1.33934392,106010.0,106000.0,0.02100109]
[1762765454434,1.33934392,106010.0,106000.0,0.03329109]
[1762765454640,0.72348078,106010.0,106000.0,0.26199033]
[1762765454846,0.66514078,106010.0,106000.0,0.26199033]
[1762765455740,0.54467978,106010.0,106000.0,0.26199033]
[1762765456564,0.35601834,106010.0,106000.0,0.26199033]
[1762765457067,0.02255832,106010.0,106000.0,0.26199033]
[1762765457444,0.54467978,106010.0,106000.0,0.26199033]
[1762765457649,0.35601834,106010.0,106000.0,0.26199033]
[1762765457989,0.54467978,106010.0,106000.0,0.26199033]
[1762765458670,0.54467978,106010.0,106000.0,0.07331109]
[1762765459053,0.54467978,106010.0,106000.0,0.26199033]
[1762765460739,0.21121976,106010.0,106000.0,0.26199033]
[1762765460943,0.35601834,106010.0,106000.0,0.26199033]
[1762765461094,0.54467978,106010.0,106000.0,0.26199033]
[1762765462021,0.54467978,106010.0,106000.0,0.07331109]
[1762765464456,0.21121976,106010.0,106000.0,0.07331109]
[1762765464815,0.54467978,106010.0,106000.0,0.07331109]
[1762765465522,0.21121976,106010.0,106000.0,0.07331109]
[1762765465764,0.54467978,106010.0,106000.0,0.07331109]
[1762765472131,0.21121976,106010.0,106000.0,0.07331109]
[1762765472294,0.54467978,106010.0,106000.0,0.07331109]
[1762765475539,0.54467978,106010.0,106000.0,0.26199033]
[1762765475952,0.54467978,106010.0,106000.0,0.07331109]
[1762765476651,0.54467978,106010.0,106000.0,0.26199033]
[1762765477059,0.54471317,106010.0,106000.0,0.26199033]
[1762765477839,0.54471317,106010.0,106000.0,0.07331109]
[1762765478807,0.21125315,106010.0,106000.0,0.26199033]
[1762765479003,0.54471317,106010.0,106000.0,0.26199033]
[1762765479229,0.54471317,106010.0,106000.0,0.07331109]
[1762765481637,0.21125315,106010.0,106000.0,0.07331109]
[1762765481840,0.54471317,106010.0,106000.0,0.07331109]
[1762765482440,0.54471317,106010.0,106000.0,0.26199033]
[1762765482564,0.54471317,106010.0,106000.0,0.07331109]
[1762765483728,0.54471317,106010.0,106000.0,0.26199033]
[1762765484229,0.35605173,106010.0,106000.0,0.26199033]
[1762765484458,0.02259171,106010.0,106000.0,0.59545035]
[1762765485294,0.005,106010.0,106000.0,0.59545035]
[1762765486271,0.005,106010.0,106000.0,0.92891037]
[1762765486481,0.005,106010.0,106000.0,0.93891037]
[1762765486598,0.005,106010.0,106000.0,0.60545035]
[1762765486804,0.005,106010.0,106000.0,0.93891037]
[1762765487027,0.001,106010.0,106000.0,0.60413944]
[1762765487239,0.19805761,106030.0,106020.0,0.18864365]
[1762765487240,0.65614911,106030.0,106020.0,0.18864365]
[1762765487521,0.18877038,106030.0,106020.0,0.23880365]
[1762765487721,0.32314452,106030.0,106020.0,0.23880365]
[1762765488583,0.32514452,106030.0,106020.0,0.23880365]
[1762765489235,0.33114452,106030.0,106020.0,0.23980365]
[1762765489407,0.00814452,106030.0,106020.0,0.23980365]
[1762765490382,0.00614452,106030.0,106020.0,0.24980365]
[1762765490590,0.00614452,106030.0,106020.0,0.58295276]
[1762765490832,0.00714452,106030.0,106020.0,0.58295276]
[1762765491472,0.00114452,106030.0,106020.0,0.58195276]
[1762765491595,0.00014452,106030.0,106020.0,0.58195276]
[1762765491797,0.00514452,106030.0,106020.0,0.58295276]
[1762765492017,0.00614452,106030.0,106020.0,0.58295276]
[1762765492239,0.00114452,106030.0,106020.0,0.58195276]
[1762765492438,0.00114452,106030.0,106010.0,0.02831766]
[1762765492439,0.747698,106020.0,106010.0,0.02831766]
[1762765492638,0.42110173,106020.0,106010.0,0.05295]
[1762765493007,0.35494153,106030.0,106010.0,0.24161144]
[1762765493154,0.35494153,106030.0,106020.0,0.05295]
[1762765493155,0.5150682,106030.0,106020.0,0.05295]
[1762765493360,0.32414452,106030.0,106020.0,0.24159365]
[1762765493560,0.51177038,106030.0,106020.0,0.05295]
[1762765494644,0.51377038,106030.0,106020.0,0.05295]
[1762765495136,0.84691949,106030.0,106020.0,0.05295]
[1762765495615,0.85191949,106030.0,106020.0,0.05395]
[1762765497068,0.51877038,106030.0,106020.0,0.05395]
[1762765497521,0.85191949,106030.0,106020.0,0.05395]
[1762765499124,0.51877038,106030.0,106020.0,0.24259365]
[1762765499323,0.33014452,106030.0,106020.0,0.24259365]
[1762765499528,0.51877038,106030.0,106020.0,0.24259365]
[1762765499687,0.00714452,106030.0,106020.0,0.65099792]
[1762765500031,0.00023397,106040.0,106030.0,0.19862586]
[1762765500238,0.00023397,106040.0,106030.0,0.58472497]
[1762765500666,0.5508415,106070.0,106060.0,0.1885725]
[1762765500871,0.18905208,106070.0,106060.0,0.2174525]
[1762765501097,0.18905208,106070.0,106060.0,0.2415225]
[1762765501481,0.51205208,106070.0,106060.0,0.2415225]
[1762765501627,0.32349736,106070.0,106060.0,0.2415225]
[1762765501828,0.51205208,106070.0,106060.0,0.2415225]
[1762765502050,0.51305208,106070.0,106060.0,0.2415225]
[1762765502456,0.32549736,106070.0,106060.0,0.2445225]
[1762765502663,0.51405208,106070.0,106060.0,0.2445225]
[1762765502825,0.32549736,106070.0,106060.0,0.2445225]
[1762765503026,0.51405208,106070.0,106060.0,0.2445225]
[1762765503830,0.32549736,106070.0,106060.0,0.2445225]
[1762765504042,0.51405208,106070.0,106060.0,0.2445225]
[1762765505994,0.84720119,106070.0,106060.0,0.05595]
[1762765506381,0.84860005,106070.0,106060.0,0.05595]
[1762765506579,0.84860005,106070.0,106060.0,0.2445225]
[1762765506719,0.84860005,106070.0,106060.0,0.05595]
[1762765507361,0.84860005,106070.0,106060.0,0.2445225]
[1762765510265,0.84860005,106070.0,106060.0,0.05595]
[1762765511258,0.51545094,106070.0,106060.0,0.05595]
[1762765511440,0.84860005,106070.0,106060.0,0.05595]
[1762765512048,0.86610142,106070.0,106060.0,0.05595]
[1762765512610,0.86657207,106070.0,106060.0,0.2445225]
[1762765513778,0.86657207,106070.0,106060.0,0.05595]
[1762765514016,0.86639924,106070.0,106060.0,0.05595]
[1762765515381,0.87515675,106070.0,106060.0,0.05595]
[1762765516048,0.87515675,106070.0,106060.0,0.2445225]
[1762765516889,0.54200822,106070.0,106060.0,0.05595]
[1762765517348,0.87515733,106070.0,106060.0,0.05595]
[1762765517980,0.68660261,106070.0,106060.0,0.2445225]
[1762765518202,0.3531551,106070.0,106060.0,0.2445225]
[1762765518951,0.54170982,106070.0,106060.0,0.2445225]
[1762765519153,0.87485893,106070.0,106060.0,0.05595]
[1762765519360,0.54170982,106070.0,106060.0,0.2445225]
[1762765519553,0.87485893,106070.0,106060.0,0.2445225]
[1762765519752,0.68630421,106070.0,106060.0,0.2445225]
[1762765519955,0.54170982,106070.0,106060.0,0.2445225]
[1762765520162,0.3531551,106070.0,106060.0,0.2445225]
[1762765522902,0.34439759,106070.0,106060.0,0.31977766]
[1762765525376,0.02139759,106070.0,106060.0,0.65292677]
[1762765525587,0.00389622,106070.0,106060.0,0.66292677]
[1762765529187,0.02144739,106070.0,106060.0,0.66292677]
[1762765529547,0.00189622,106070.0,106060.0,0.65992677]
[1762765529881,0.00489622,106070.0,106060.0,0.67192677]
[1762765544047,0.00489622,106070.0,106060.0,0.33877766]
[1762765544243,0.00489622,106070.0,106060.0,0.67192677]
[1762765547047,0.00489622,106070.0,106060.0,1.00422394]
[1762765548200,0.0004,106080.0,106070.0,0.18855472]
[1762765548399,0.00088191,106080.0,106070.0,0.92368038]
[1762765548691,0.00111574,106080.0,106070.0,0.98204219]
[1762765548896,0.0004,106100.0,106090.0,0.18851918]
[1762765549109,0.0004,106100.0,106090.0,0.97639113]
[1762765549291,0.0004,106100.0,106090.0,0.65674748]
[1762765549491,0.0004,106100.0,106090.0,0.98947062]
[1762765550613,0.0014,106100.0,106090.0,0.99147062]
[1762765550975,0.0014,106100.0,106090.0,0.32602434]
[1762765551299,0.0014,106100.0,106090.0,0.65874748]
[1762765551507,0.0014,106100.0,106090.0,0.99147062]
[1762765551861,0.0024,106100.0,106090.0,0.99247062]
[1762765552022,0.0014,106100.0,106090.0,0.99047062]
[1762765552226,0.0014,106100.0,106090.0,0.99347062]
[1762765552422,0.0024,106100.0,106090.0,0.99847062]
[1762765554385,0.00286755,106100.0,106090.0,0.99847062]
[1762765556455,0.00286755,106100.0,106090.0,1.06626181]
[1762765557238,0.00286755,106100.0,106090.0,0.99847062]
[1762765557415,0.00286755,106100.0,106090.0,1.06626181]
[1762765557932,0.0004,106110.0,106100.0,1.22414083]
[1762765557933,1e-08,106110.0,106100.0,1.22414083]
[1762765558070,0.00013633,106110.0,106100.0,1.31649816]
[1762765558274,0.00013633,106110.0,106100.0,0.98377502]
[1762765558724,0.00013633,106110.0,106100.0,0.98754698]
[1762765559843,0.00213633,106110.0,106100.0,0.92988965]
[1762765560220,0.00213633,106110.0,106100.0,1.26261279]
[1762765560399,0.00213633,106110.0,106100.0,1.29879507]
[1762765560621,0.0004,106120.0,106110.0,0.18848364]
[1762765560936,0.0004,106120.0,106110.0,1.0007667]
[1762765561161,0.0004,106120.0,106110.0,0.99135508]
[1762765561463,0.0004,106120.0,106110.0,0.99512674]
[1762765561812,0.0014,106120.0,106110.0,0.99712674]
[1762765562437,0.0014,106120.0,106110.0,1.02319686]
[1762765562640,0.0014,106120.0,106110.0,1.02419686]
[1762765563428,0.0014,106120.0,106110.0,0.99812674]
[1762765563625,0.0004,106130.0,106120.0,0.18846588]
[1762765563821,0.0004,106130.0,106120.0,1.27487542]
[1762765564078,1e-08,106130.0,106120.0,1.3110577]
[1762765564277,1e-08,106130.0,106120.0,1.60798758]
[1762765564611,1e-08,106130.0,106120.0,1.61798757]
[1762765564792,1e-08,106130.0,106120.0,0.68747548]
[1762765564992,1e-08,106130.0,106120.0,1.35292176]
[1762765565193,0.00100001,106130.0,106120.0,1.6896449]
[1762765565417,0.00100001,106130.0,106120.0,1.28926443]
[1762765565575,1e-08,106130.0,106120.0,1.28526443]
[1762765565976,0.00100001,106130.0,106120.0,1.29226443]
[1762765566481,0.00100001,106130.0,106120.0,1.29126443]
[1762765566641,0.00100001,106130.0,106120.0,1.29326443]
[1762765566839,0.00100001,106130.0,106120.0,1.28326444]
[1762765567043,0.00100001,106130.0,106120.0,1.29326443]
[1762765567524,0.00100001,106130.0,106120.0,1.28326444]
[1762765568082,0.00100001,106130.0,106120.0,1.29326443]
[1762765568253,0.00100001,106130.0,106120.0,1.28326444]
[1762765568454,0.00100001,106130.0,106120.0,1.29326443]
[1762765568856,0.00100001,106130.0,106120.0,0.58163588]
[1762765569060,0.00100001,106130.0,106120.0,0.59135902]
[1762765570269,0.00100001,106130.0,106120.0,0.25863588]
[1762765570436,0.33372315,106130.0,106120.0,0.25863588]
[1762765570641,0.00100001,106130.0,106120.0,0.25863588]
[1762765570888,0.33372315,106130.0,106120.0,0.25863588]
[1762765571067,0.54839802,106130.0,106120.0,0.24863588]
[1762765571268,0.88112116,106130.0,106120.0,0.03547]
[1762765571554,1.05442716,106130.0,106120.0,0.008]
[1762765571851,1.41360944,106130.0,106120.0,0.008]
[1762765571998,1.47340312,106130.0,106120.0,0.008]
[1762765572204,1.4413787,106130.0,106120.0,0.002]
[1762765572402,0.18848364,106110.0,106100.0,0.22556111]
[1762765572608,0.57099398,106110.0,106100.0,0.22556111]
[1762765572802,0.54743353,106110.0,106100.0,0.24067111]
[1762765573411,0.02622675,106110.0,106100.0,0.24067141]
[1762765573608,0.57099398,106110.0,106100.0,0.05417]
[1762765573839,0.54773253,106110.0,106100.0,0.24067141]
[1762765574043,0.35894989,106110.0,106100.0,0.24067141]
[1762765574237,0.54743353,106110.0,106100.0,0.24167141]
[1762765574440,0.35894989,106110.0,106100.0,0.24167141]
[1762765575029,0.35994989,106110.0,106100.0,0.24767141]
[1762765575603,0.35894989,106110.0,106100.0,0.24167141]
[1762765576062,0.54843353,106110.0,106100.0,0.24567141]
[1762765576869,0.54843353,106110.0,106100.0,0.05717]
[1762765577093,0.88115667,106110.0,106100.0,0.22097141]
[1762765577230,0.88115667,106110.0,106100.0,0.01736]
[1762765577231,0.87190402,106110.0,106100.0,0.01736]
[1762765578265,0.87090402,106110.0,106100.0,0.01336]
[1762765578510,0.87190402,106110.0,106100.0,0.01436]
[1762765578689,0.87190402,106110.0,106100.0,0.01336]
[1762765578866,0.87390402,106110.0,106100.0,0.01336]
[1762765579826,1.20615667,106110.0,106100.0,0.001]
[1762765579979,1.20645567,106110.0,106100.0,0.001]
[1762765580186,1.94515268,106110.0,106100.0,0.001]
[1762765580695,1.28448949,106110.0,106100.0,0.001]
[1762765580900,1.40094295,106110.0,106100.0,0.001]
[1762765581101,0.51150141,106100.0,106090.0,0.001331]
[1762765581276,1.47644298,106100.0,106090.0,0.00146732]
[1762765582129,1.46770073,106100.0,106090.0,0.00146732]
[1762765582344,1.46870073,106100.0,106090.0,0.1909865]
[1762765582683,1.46870073,106100.0,106090.0,0.00246732]
[1762765582935,0.01995504,106100.0,106090.0,0.2417065]
[1762765583081,0.67520764,106100.0,106090.0,0.2417065]
[1762765584451,0.002,106100.0,106090.0,0.58442964]
[1762765586620,0.001,106100.0,106090.0,0.58442964]
[1762765587023,0.001,106100.0,106090.0,0.53712502]
[1762765587219,0.00047058,106110.0,106100.0,0.18850141]
[1762765587439,0.60688905,106130.0,106120.0,0.18846588]
[1762765587566,0.60688909,106130.0,106120.0,0.20351588]
[1762765587774,0.60641852,106130.0,106120.0,0.20351588]
[1762765588164,0.79486664,106130.0,106120.0,0.20351588]
[1762765588375,0.79533726,106130.0,106120.0,0.20351588]
[1762765588612,0.79486664,106130.0,106120.0,0.01505]
[1762765588818,0.79516599,106130.0,106120.0,0.20351588]
[1762765589190,0.79486664,106130.0,106120.0,0.01505]
[1762765589412,0.60688901,106130.0,106120.0,0.20351588]
[1762765589589,0.61141852,106130.0,106120.0,0.20451588]
[1762765589986,0.61141852,106130.0,106120.0,0.21656588]
[1762765590220,0.61141852,106130.0,106120.0,0.24018588]
[1762765590753,0.335,106130.0,106120.0,0.24118588]
[1762765592174,0.012,106130.0,106120.0,0.24118588]
[1762765592367,0.012,106130.0,106120.0,0.60985956]
[1762765592731,0.012,106130.0,106120.0,0.62185956]
[1762765592930,0.012,106130.0,106120.0,0.33844104]
[1762765593242,0.005,106130.0,106120.0,0.33744104]
[1762765593656,0.006,106130.0,106120.0,0.34144104]
[1762765594472,0.001,106130.0,106120.0,0.34044104]
[1762765595024,0.001,106130.0,106120.0,0.34244104]
[1762765595945,0.001,106130.0,106120.0,0.62585956]
[1762765597231,0.001,106130.0,106120.0,0.34244104]
[1762765597449,0.001,106130.0,106120.0,0.33244104]
[1762765597652,0.001,106130.0,106120.0,0.22156588]
[1762765597851,0.18944812,106130.0,106120.0,0.22156588]
[1762765598070,0.21300413,106130.0,106120.0,0.22156588]
[1762765598469,0.21300413,106130.0,106120.0,0.006]
[1762765598792,0.21330357,106130.0,106120.0,0.19446588]
[1762765598962,0.21300413,106130.0,106120.0,0.19446588]
[1762765599161,0.21300413,106130.0,106120.0,0.19246588]
[1762765599361,0.21200413,106130.0,106120.0,0.18846588]
[1762765599581,0.21400413,106130.0,106120.0,0.001]
[1762765599790,0.21447462,106130.0,106120.0,0.18946588]
[1762765599988,0.21400413,106130.0,106120.0,0.18946588]
[1762765600410,0.002,106130.0,106120.0,0.22813588]
[1762765603196,0.002,106130.0,106120.0,0.24018588]
[1762765605692,0.002,106130.0,106120.0,0.60885956]
[1762765608236,0.002,106130.0,106120.0,0.63714755]
[1762765609007,0.002,106130.0,106120.0,0.68609733]
[1762765610941,0.002,106130.0,106120.0,0.78897595]
[1762765612378,0.002,106130.0,106120.0,0.35372903]
[1762765612636,0.002,106130.0,106120.0,0.78897595]
[1762765615914,0.002,106130.0,106120.0,0.27847387]
[1762765616082,0.02555601,106130.0,106120.0,0.24018588]
[1762765616259,0.002,106130.0,106120.0,0.24018588]
[1762765616985,0.002,106130.0,106120.0,0.31544104]
[1762765617288,0.002,106130.0,106120.0,0.32544104]
[1762765617818,0.002,106130.0,106120.0,0.24018588]
[1762765619442,0.19044812,106130.0,106120.0,0.24018588]
[1762765619695,0.002,106130.0,106120.0,0.24018588]
[1762765620425,0.19044812,106130.0,106120.0,0.05172]
[1762765620669,0.21072907,106130.0,106120.0,0.24018588]
[1762765620845,0.02228095,106130.0,106120.0,0.24018588]
[1762765621204,0.22831475,106130.0,106120.0,0.21656588]
[1762765621405,0.19044812,106130.0,106120.0,0.21656588]
[1762765621611,0.21400413,106130.0,106120.0,0.24032588]
[1762765622609,0.23159056,106130.0,106120.0,0.0281]
[1762765622844,0.21682779,106130.0,106120.0,0.21656588]
[1762765623069,0.2403838,106130.0,106120.0,0.21656588]
[1762765623323,0.23159056,106130.0,106120.0,0.21656588]
[1762765623958,0.20803455,106130.0,106120.0,0.21656588]
[1762765625198,0.19044812,106130.0,106120.0,0.21656588]
[1762765625403,0.21400413,106130.0,106120.0,0.21656588]
[1762765626388,0.02555601,106130.0,106120.0,0.21656588]
[1762765626541,0.02555601,106130.0,106120.0,0.24032588]
[1762765627157,0.02555601,106130.0,106120.0,0.21656588]
[1762765627373,0.21400413,106130.0,106120.0,0.20151588]
[1762765627518,0.21400413,106130.0,106120.0,0.18946588]
[1762765629035,0.64925105,106130.0,106120.0,0.001]
[1762765629222,0.62569504,106130.0,106120.0,0.001]
[1762765629422,0.19044812,106130.0,106120.0,0.18946588]
[1762765629685,0.21400413,106130.0,106120.0,0.18946588]
[1762765630785,0.21400413,106130.0,106120.0,0.001]
[1762765631321,0.25560413,106130.0,106120.0,0.001]
[1762765631552,0.23204812,106130.0,106120.0,0.001]
[1762765632161,0.23204812,106130.0,106120.0,0.18946588]
[1762765632370,0.002,106130.0,106120.0,0.75129796]
[1762765632578,0.002,106130.0,106120.0,0.31605104]
[1762765632894,0.002,106130.0,106120.0,0.6484868]
[1762765633096,0.002,106130.0,106120.0,0.24079588]
[1762765633388,0.20771234,106130.0,106120.0,0.05233]
[1762765633587,1.16279059,106130.0,106120.0,0.001]
[1762765633784,1.07719065,106130.0,106120.0,0.001]
[1762765633937,1.07766136,106130.0,106120.0,0.001]
[1762765634557,0.51148351,106120.0,106100.0,0.20997648]
[1762765634757,0.04164,106110.0,106100.0,0.20997648]
[1762765634961,0.06520045,106110.0,106100.0,0.20997648]
[1762765635140,0.06520045,106110.0,106100.0,0.22628648]
[1762765635771,0.06620045,106110.0,106100.0,0.25104648]
[1762765637025,0.25468409,106110.0,106100.0,0.02936]
[1762765637228,1.0259229,106110.0,106100.0,0.001]
[1762765637633,1.04348397,106110.0,106100.0,0.001]
[1762765637868,0.18850141,106100.0,106090.0,0.01351732]
[1762765638078,0.51150141,106100.0,106090.0,0.2020365]
[1762765638512,0.94707618,106100.0,106090.0,0.2020365]
[1762765638727,0.51192969,106100.0,106090.0,0.2183465]
[1762765638954,0.323,106100.0,106090.0,0.2183465]
[1762765639196,0.00047054,106110.0,106100.0,0.18850141]
[1762765639419,0.00047054,106110.0,106100.0,0.21607141]
[1762765639420,0.04164,106110.0,106100.0,0.21607141]
[1762765639630,0.51193668,106120.0,106110.0,0.18848364]
[1762765639893,0.18848364,106110.0,106100.0,0.23983141]
[1762765640104,0.57065567,106120.0,106100.0,0.23983141]
[1762765640105,0.55357642,106120.0,106100.0,0.23983141]
[1762765640295,0.571127,106120.0,106100.0,0.23983141]
[1762765640630,0.04164,106110.0,106100.0,0.23983141]
[1762765641719,0.04264,106110.0,106100.0,0.24083141]
[1762765642122,0.23212364,106110.0,106100.0,0.24083141]
[1762765642851,0.04364,106110.0,106100.0,0.24083141]
[1762765643261,0.23212364,106110.0,106100.0,0.24083141]
[1762765643704,0.04364,106110.0,106100.0,0.24083141]
[1762765647736,0.002,106110.0,106100.0,0.24083141]
[1762765652295,0.19048364,106110.0,106100.0,0.24083141]
[1762765653130,0.002,106110.0,106100.0,0.24083141]
[1762765661364,0.002,106110.0,106100.0,0.18950141]
[1762765661575,0.002,106110.0,106100.0,0.001]
[1762765661576,2.06544143,106110.0,106100.0,0.001]
[1762765661793,1.82984765,106110.0,106100.0,0.001]
[1762765662000,1.40624565,106110.0,106100.0,0.001]
[1762765663621,1.40577463,106110.0,106100.0,0.001]
[1762765663840,1.43484456,106110.0,106100.0,0.001]
[1762765664047,1.40577463,106110.0,106100.0,0.001]
[1762765666010,1.40624565,106110.0,106100.0,0.001]
[1762765667080,1.40577463,106110.0,106100.0,0.001]
[1762765667216,1.40624556,106110.0,106100.0,0.001]
[1762765667829,1.40577463,106110.0,106100.0,0.001]
[1762765668030,0.54768369,106100.0,106090.0,0.00146732]
[1762765668239,2.26514798,106100.0,106090.0,0.00146732]
[1762765670024,1.78614598,106100.0,106090.0,0.00246732]
[1762765670254,1.68783598,106100.0,106090.0,0.00246732]
[1762765670390,1.45619187,106100.0,106090.0,0.00246732]
[1762765671016,1.70050031,106100.0,106090.0,0.00246732]
[1762765671825,1.03482045,106100.0,106090.0,0.00246732]
[1762765671997,0.87219205,106100.0,106090.0,0.00246732]
[1762765672354,1.35033398,106100.0,106090.0,0.00246732]
[1762765672837,1.24663198,106100.0,106090.0,0.00246732]
[1762765672992,0.87172121,106100.0,106090.0,0.2024265]
[1762765673186,1.24616114,106100.0,106090.0,0.2024265]
[1762765673392,1.24616114,106100.0,106090.0,0.01390732]
[1762765673634,1.34619614,106100.0,106090.0,0.01390732]
[1762765673816,0.58048128,106100.0,106090.0,0.01390732]
[1762765674031,1.30459614,106100.0,106090.0,0.1909865]
[1762765674371,1.24616114,106100.0,106090.0,0.00246732]
[1762765675830,1.34669614,106100.0,106090.0,0.00246732]
[1762765676028,1.24616114,106100.0,106090.0,0.00246732]
[1762765676424,1.34669614,106100.0,106090.0,0.00246732]
[1762765677187,1.33790285,106100.0,106090.0,0.00246732]
[1762765678567,1.34742967,106100.0,106090.0,0.00246732]
[1762765678770,1.34742967,106100.0,106090.0,0.00271932]
[1762765679768,1.29630285,106100.0,106090.0,0.00271932]
[1762765679967,1.33790285,106100.0,106090.0,0.00271932]
[1762765680474,1.34729831,106100.0,106090.0,0.00271932]
[1762765681102,1.35607864,106100.0,106090.0,0.00271932]
[1762765681514,1.44909344,106100.0,106090.0,0.00271932]
[1762765681650,1.78193337,106100.0,106090.0,0.00271932]
[1762765682067,1.8110033,106100.0,106090.0,0.00271932]
[1762765683165,1.8100033,106100.0,106090.0,0.00171932]
[1762765683448,1.8170033,106100.0,106090.0,0.00271932]
[1762765683848,1.81747388,106100.0,106090.0,0.00271932]
[1762765684112,1.8170033,106100.0,106090.0,0.00271932]
[1762765684310,1.82147393,106100.0,106090.0,0.00371932]
[1762765684535,1.82147388,106100.0,106090.0,0.00371932]
[1762765686231,1.82147393,106100.0,106090.0,0.00371932]
[1762765686431,1.82147388,106100.0,106090.0,0.00371932]
[1762765687072,1.89312746,106100.0,106090.0,0.00371932]
[1762765687254,1.89265688,106100.0,106090.0,0.00371932]
[1762765688028,1.89312746,106100.0,106090.0,0.00371932]
[1762765688171,1.96791204,106100.0,106090.0,0.00371932]
[1762765688930,0.96939225,106100.0,106090.0,0.00371932]
[1762765689139,0.80870522,106100.0,106090.0,0.00371932]
[1762765689334,1.47438508,106100.0,106090.0,0.00371932]
[1762765689568,1.80722501,106100.0,106090.0,0.00371932]
[1762765690773,1.47438508,106100.0,106090.0,0.00371932]
[1762765691105,1.98011132,106100.0,106090.0,0.00371932]
[1762765691280,2.02988649,106100.0,106090.0,0.00371932]
[1762765691484,2.05819878,106100.0,106090.0,0.00371932]
[1762765691686,2.05772794,106100.0,106090.0,0.00371932]
[1762765691931,2.06819877,106100.0,106090.0,0.00371932]
[1762765692115,0.18859028,106050.0,106040.0,0.03435]
[1762765692338,0.18868092,106050.0,106040.0,0.20004807]
[1762765692468,9.064e-05,106050.0,106040.0,0.20004807]
[1762765692685,0.18868092,106050.0,106040.0,0.23956807]
[1762765693289,0.18968092,106050.0,106040.0,0.24656807]
[1762765694210,0.19068092,106050.0,106040.0,0.25156807]
[1762765695351,0.52352085,106050.0,106040.0,0.25156807]
[1762765695969,0.52352085,106050.0,106040.0,0.21204807]
[1762765696535,0.52352085,106050.0,106040.0,0.22865807]
[1762765696762,0.52352085,106050.0,106040.0,0.04005]
[1762765696985,0.52352085,106050.0,106040.0,0.22865807]
[1762765697344,0.52352085,106050.0,106040.0,0.25156807]
[1762765697816,0.33493057,106050.0,106040.0,0.25273765]
[1762765697947,0.00209064,106050.0,106040.0,0.25273765]
[1762765698499,0.00209064,106050.0,106040.0,0.58557758]
[1762765699205,0.00209064,106050.0,106040.0,0.59557758]
[1762765699456,0.00209064,106050.0,106040.0,0.92841751]